[Event "AI Cup Div-2 2023"]
[Site "Online"]
[Date "2023.09.27"]
[Round "52.2"]
[White "Saric, Ivan"]
[Black "Caruana, Fabiano"]
[Result "0-1"]
[ECO "C77"]
[WhiteElo "2647"]
[BlackElo "2786"]
[Annotator "TA"]
[PlyCount "74"]
[EventDate "2023.09.18"]
[EventType "k.o."]
[EventCountry "NET"]
[SourceTitle "playchess.com"]
[Source "ChessBase"]
[SourceQuality "1"]
[TimeControl "900+3"]

{[%evp 13,74,23,19,17,29,17,20,21,22,25,28,-12,13,-14,-8,0,14,-11,-11,-10,-23,-11,0,-44,-29,-41,-40,-84,-77,-88,0,-118,-115,-520,-512,-666,-631,-610,-639,-997,-669,-661,-648,-1040,-1041,-995,-1024,-1037,-1046,-984,-994,-983,-985,-978,-958,-943,-926,-1120,-1115,-1362,-1362,-29979,-29980]} 1. e4 {[%emt 0:00:03]} e5 {[%emt 0:00:03]} 2. Nf3 {[%emt 0:00:02]} Nc6 {[%emt 0:00:01]} 3. Bb5 {[%emt 0:00:03][%cal Bf1b5,Bb5a4,Ba4b3][%mdl 32]} a6 {[%emt 0:00:01]} 4. Ba4 {[%emt 0:00:01]} Nf6 {[%emt 0:00:01]} 5. d3 {[%emt 0:00:02]} b5 {[%emt 0:00:05]} 6. Bb3 {[%emt 0:00:01]} Bc5 {[%emt 0:00:01]} 7. c3 {[%emt 0:00:16]} d6 {[%emt 0:00:01]} 8. Bg5 {[%emt 0:00:03][%cal Bc1g5,Bg5h4,Bh4g3][%mdl 32] is recently more successful than 8.0-0. C77: Ruy Lopez: 3...a6 4 Ba4 Nf6, unusual lines.} h6 {[%emt 0:00:05]} 9. Bh4 {[%emt 0:00:01]} g5 {[%emt 0:00:13]} 10. Bg3 {[%emt 0:00:01] The position is equal.} O-O {[%emt 0:00:01]} 11. Nbd2 {[%emt 0:00:05]} Bb6 {[%emt 0:00:02]} 12. Qe2 {[%emt 0:00:05] [#]} Kg7 $146 {[%emt 0:00:14]} ({Predecessor:} 12... Na5 13. Bc2 c5 14. Nf1 Re8 15. Ne3 c4 16. Rd1 cxd3 17. Bxd3 Be6 18. h4 g4 {1-0 Martinez Alcantara,J (2591)-Caruana,F (2783) Chess.com Rapid Wk21 Swiss 2022 (9)}) 13. h4 {[%emt 0:00:09]} g4 {[%emt 0:00:03]} 14. Nh2 {[%emt 0:00:00][%cal Oh4h5]} Ne7 {[%emt 0:00:04] [#]} 15. h5 $1 {[%emt 0:00:19][%mdl 64] Prevents Ng6. Deflection} Nxh5 {[%emt 0:00:04] Strongly threatening ...Ng6.} 16. Nxg4 {[%emt 0:00:01]} Nxg3 {[%emt 0:00:01]} 17. fxg3 {[%emt 0:00:00]} Ng8 {[%emt 0:00:05]} 18. Rh5 {[%emt 0:05:23] Prevents Qg5} Nf6 $36 {[%emt 0:00:19][%mdl 2048] Black fights for an advantage.} 19. Nxf6 {[%emt 0:00:02]} (19. Nxh6 Nxh5 20. Qxh5 Qf6 21. Nf5+ Bxf5 22. exf5 Rh8 23. Qg4+ Kf8 $17) 19... Qxf6 {[%emt 0:00:00]} 20. Nf3 {[%emt 0:01:18]} Qg6 {[%emt 0:00:25][%csl LRg3,LRh5]} 21. Nh4 {[%emt 0:00:01] [#]} Qxg3+ {[%emt 0:00:03]} (21... Bg4 $1 $17 {[%cal Rg4e2]} 22. Nf5+ Kf6 23. Rxh6 Bxe2 24. Kxe2 c6) 22. Kd2 {[%emt 0:00:01]} (22. Kd1 $11) 22... Qf4+ $17 {[%emt 0:00:19]} 23. Kc2 $2 {[%emt 0:00:06][%mdl 8192] This move loses the game for White.} (23. Ke1 $17 {was the crucial defense.}) 23... Bg4 $19 {[%emt 0:00:05]} 24. Qxg4+ {[%emt 0:00:40]} Qxg4 {[%emt 0:00:02]} 25. Nf5+ {[%emt 0:00:01]} Kg6 {[%emt 0:00:14]} 26. Rxh6+ {[%emt 0:00:11]} Kg5 {[%emt 0:00:01]} 27. Rah1 {[%emt 0:00:01]} Qe2+ {[%emt 0:00:43]} 28. Kb1 {[%emt 0:00:09] [#]} Rh8 $3 {[%emt 0:00:03]} 29. Rxh8 {[%emt 0:00:29]} Rxh8 {[%emt 0:00:00]} 30. Rxh8 {[%emt 0:00:01]} Qxd3+ {[%emt 0:00:02]} ({Don't take} 30... Qxg2 31. Rg8+ (31. Bxf7 $2 {perishes.} Qf1+ 32. Kc2 Qe2+ 33. Kc1 Be3+ 34. Nxe3 Qxe3+ 35. Kc2 Qf2+ 36. Kb1 Qf1+ 37. Kc2 Qf2+ 38. Kb1 Qf1+ 39. Kc2 Qxf7 $19) 31... Kf4 32. Rxg2 $18) 31. Kc1 {[%emt 0:00:01]} Be3+ {[%emt 0:00:09]} 32. Nxe3 {[%emt 0:00:01]} Qxe3+ {[%emt 0:00:00] KQ-KRB} 33. Kd1 {[%emt 0:00:04]} Qg1+ {[%emt 0:00:08]} 34. Kd2 {[%emt 0:00:08]} Qxg2+ {[%emt 0:00:00]} 35. Kd3 {[%emt 0:00:02]} Qxb2 {[%emt 0:00:08] ...c5 is the strong threat.} 36. Bxf7 {[%emt 0:00:07]} c5 {[%emt 0:00:06] ( -> ...c4+)} 37. Rh5+ {[%emt 0:00:13]} Kg4 {[%emt 0:00:05] Magnificent play by Caruana!   Weighted Error Value: White=1.10/Black=0.07 (flawless)} 0-1

[Event "AI Cup Div-2 2023"]
[Site "Online"]
[Date "2023.09.27"]
[Round "52.2"]
[White "Kuzubov, Yuriy"]
[Black "Duda, Jan-Krzysztof"]
[Result "1/2-1/2"]
[ECO "A48"]
[WhiteElo "2625"]
[BlackElo "2726"]
[Annotator "TA"]
[PlyCount "77"]
[EventDate "2023.09.18"]
[EventType "k.o."]
[EventCountry "NET"]
[SourceTitle "playchess.com"]
[Source "ChessBase"]
[SourceQuality "1"]
[TimeControl "900+3"]

{[%evp 9,77,9,20,13,54,44,35,29,45,27,69,40,56,52,47,40,24,21,20,20,27,0,0,0,22,11,12,4,10,8,16,7,14,0,26,10,17,10,54,49,50,13,12,18,42,51,51,56,57,48,58,20,20,22,52,52,58,15,15,15,15,15,15,15,15,15,15,15,15,0]} 1. d4 {[%emt 0:00:04]} Nf6 {[%emt 0:00:05]} 2. Nf3 {[%emt 0:00:01]} g6 {[%emt 0:00:01]} 3. Nbd2 {[%emt 0:00:02][%cal Bb1d2,Bd2b3,Bb3c5][%mdl 32]} Bg7 {[%emt 0:00:07]} 4. e4 {[%emt 0:00:01][%cal Be2e4,Be4e5][%mdl 32]} O-O {[%emt 0:00:12]} 5. c3 {[%emt 0:00:12]} d5 {[%emt 0:00:47]} 6. e5 {[%emt 0:00:16] [#] A48: 1 d4 Nf6 2 Nf3 g6: Torre, London and Colle Systems.} Nh5 $146 {[%emt 0:00:03]} ({Predecessor:} 6... Ne8 7. h4 Bg4 8. Qb3 c5 9. Qxb7 Nc7 10. h5 a5 11. hxg6 fxg6 12. Rh4 Bf5 13. dxc5 {0-1 Karakehajov,K (2458)-Lupulescu,C (2571) Bucharest Autumn Cup 2006 (4)}) 7. Nb3 {[%emt 0:00:17]} f6 {[%emt 0:00:09]} 8. Be2 {[%emt 0:00:11] White is slightly better.} Nc6 {[%emt 0:00:23][%cal Rf6e5]} 9. exf6 {[%emt 0:00:01]} Rxf6 {[%emt 0:01:05]} 10. O-O {[%emt 0:00:13]} Nf4 {[%emt 0:00:14]} 11. Bxf4 {[%emt 0:00:03]} Rxf4 {[%emt 0:00:00]} 12. Nc5 {[%emt 0:00:12]} Qd6 {[%emt 0:00:02]} 13. Nd3 {[%emt 0:00:27]} Rf8 {[%emt 0:00:12]} 14. Re1 {[%emt 0:00:27]} Bf5 {[%emt 0:00:15]} 15. Nde5 {[%emt 0:01:23]} Nxe5 {[%emt 0:01:42]} 16. Nxe5 {[%emt 0:00:25]} Be4 {[%emt 0:01:11]} 17. f3 {[%emt 0:00:18]} Bf5 {[%emt 0:00:07]} 18. Bd3 {[%emt 0:00:08]} c5 {[%emt 0:00:04]} 19. dxc5 {[%emt 0:01:57]} Qxc5+ {[%emt 0:00:00]} 20. Kh1 {[%emt 0:00:00]} Rad8 {[%emt 0:00:09]} 21. Bxf5 {[%emt 0:00:20]} Rxf5 {[%emt 0:00:00]} 22. Nd3 {[%emt 0:00:04]} Qc7 {[%emt 0:00:01]} 23. Re6 {[%emt 0:00:23]} b5 {[%emt 0:03:37]} 24. Qe2 {[%emt 0:00:10]} Rd7 {[%emt 0:00:50]} 25. Re1 {[%emt 0:00:45][%cal Re6e7]} d4 {[%emt 0:00:03]} ({Don't take} 25... Rh5 26. g4 (26. Rxe7 $2 Qxh2#) 26... Rh3 27. Qg2 $16 (27. Rxe7 $2 Rxe7 28. Qg2 Rxe1+ 29. Nxe1 Rh4 $19)) 26. cxd4 {[%emt 0:00:06] Black should prevent Rc1.} ({But not} 26. Rxe7 Rxe7 27. Qxe7 Qxe7 28. Rxe7 dxc3 29. bxc3 (29. Rxa7 $2 {too greedy.} Rd5 $19) 29... Rd5 30. Re8+ Kf7 $17) 26... Bxd4 {[%emt 0:00:03]} 27. Rxe7 {[%emt 0:00:37]} Rxe7 {[%emt 0:00:00]} 28. Qxe7 {[%emt 0:00:01]} Qxe7 {[%emt 0:00:01]} 29. Rxe7 $11 {[%emt 0:00:02][%mdl 4096] Endgame KRB-KRN} Rd5 {[%emt 0:00:00] [#] aiming for ...Bc5.} 30. Re1 {[%emt 0:00:18]} Rd6 {[%emt 0:01:01]} 31. g3 {[%emt 0:00:15]} Ra6 {[%emt 0:00:18]} 32. a3 {[%emt 0:01:03]} Rd6 {[%emt 0:00:12]} 33. Kg2 {[%emt 0:00:22]} Bxb2 {[%emt 0:00:05][%mdl 64] [#] Decoy. The position is equal.} 34. Nxb2 {[%emt 0:00:04] Strongly threatening Kf2. KRN-KR} Rd2+ {[%emt 0:00:02]} 35. Kh3 {[%emt 0:00:01] Black must now prevent Rb1.} Rxb2 {[%emt 0:00:01]} 36. Re8+ {[%emt 0:00:06]} Kf7 {[%emt 0:00:13]} 37. Ra8 {[%emt 0:00:02]} h5 {[%emt 0:00:01]} 38. Rxa7+ {[%emt 0:00:02]} Kf6 {[%emt 0:00:04]} 39. g4 {[%emt 0:00:15] Weighted Error Value: White=0.07 (flawless) /Black=0.08 (flawless)} 1/2-1/2

[Event "AI Cup Div-2 2023"]
[Site "Online"]
[Date "2023.09.27"]
[Round "53.1"]
[White "Dominguez Perez, Leinier"]
[Black "Kuzubov, Yuriy"]
[Result "1/2-1/2"]
[ECO "C42"]
[WhiteElo "2745"]
[BlackElo "2625"]
[Annotator "TA"]
[PlyCount "55"]
[EventDate "2023.09.18"]
[EventType "k.o."]
[EventCountry "NET"]
[SourceTitle "playchess.com"]
[Source "ChessBase"]
[SourceQuality "1"]
[TimeControl "900+3"]

{[%evp 13,55,17,7,12,6,6,6,4,21,16,29,10,16,13,21,0,42,18,20,16,23,0,0,0,0,0,11,3,19,14,36,16,30,4,3,3,6,3,8,1,1,0,0,-21]} 1. e4 {[%emt 0:00:25]} e5 {[%emt 0:00:20]} 2. Nf3 {[%emt 0:00:01]} Nf6 {[%emt 0:00:04]} 3. Nxe5 {[%emt 0:00:02]} d6 {[%emt 0:00:06]} 4. Nf3 {[%emt 0:00:01]} Nxe4 {[%emt 0:00:02]} 5. Nc3 {[%emt 0:00:01]} Nxc3 {[%emt 0:00:07]} 6. dxc3 {[%emt 0:00:01]} Be7 {[%emt 0:00:08]} 7. Be3 {[%emt 0:00:02]} O-O {[%emt 0:00:04]} 8. Qd2 {[%emt 0:00:02] C42: Petroff Defence: 3 Nxe5 and unusual White 3rd moves.} Nd7 {[%emt 0:00:04]} 9. O-O-O {[%emt 0:00:19]} c6 {[%emt 0:00:09]} 10. h4 {[%emt 0:00:42]} Re8 {[%emt 0:00:08]} 11. Bd3 {[%emt 0:01:04]} Qa5 {[%emt 0:00:42] [#]} 12. a3 $146 {[%emt 0:02:49]} ({Predecessor:} 12. Kb1 Ne5 13. Nxe5 dxe5 14. Qe2 Be6 15. Bc4 Bxc4 16. Qxc4 Rad8 17. h5 Rxd1+ 18. Rxd1 {½-½ Caruana,F (2675)-Kramnik,V (2788) Corus Wijk aan Zee 2010 (3)}) 12... Nc5 {[%emt 0:00:09]} 13. Bxc5 {[%emt 0:00:57]} Qxc5 {[%emt 0:00:06]} 14. Rde1 {[%emt 0:01:15]} Bg4 {[%emt 0:04:24]} 15. Ng5 {[%emt 0:00:31] [#] Strongly threatening b4.} (15. Qf4 $5 {[%cal Rf4g4]} Bxf3 16. Qxf3 $11) 15... Bf5 {[%emt 0:00:12]} 16. Qf4 {[%emt 0:02:25]} Bxg5 {[%emt 0:00:24]} 17. Qxg5 {[%emt 0:00:04]} (17. hxg5 {is interesting.} Bxd3 18. cxd3 Re6 19. Rxe6 fxe6 20. Qg4) 17... Bxd3 {[%emt 0:00:30]} (17... Qxf2 $2 18. Ref1 (18. Qxf5 $2 {gets mated.} Rxe1+ {[%mdl 64] Back Rank} 19. Rxe1 Qxe1#) (18. Rxe8+ Rxe8 19. Qd2 Qxd2+ 20. Kxd2 Bg4 $17) 18... Qe3+ 19. Qxe3 Rxe3 20. Rxf5 $18) 18. Qxc5 {[%emt 0:00:03]} dxc5 {[%emt 0:00:00]} 19. cxd3 $11 {[%emt 0:00:01][%mdl 4096] Endgame KRR-KRR} Kf8 {[%emt 0:00:13]} 20. Re4 {[%emt 0:01:19]} Red8 {[%emt 0:00:23]} 21. Kc2 {[%emt 0:00:04]} Rd7 {[%emt 0:00:22]} 22. Rh3 {[%emt 0:00:30]} Rad8 {[%emt 0:00:07]} 23. b4 {[%emt 0:00:38]} cxb4 {[%emt 0:00:08] The position is equal.} 24. axb4 {[%emt 0:00:00]} Rd5 {[%emt 0:00:18]} 25. c4 {[%emt 0:00:14]} Rf5 {[%emt 0:00:22]} 26. f4 {[%emt 0:00:07]} h5 {[%emt 0:00:14]} 27. d4 {[%emt 0:00:02]} a5 {[%emt 0:00:11]} 28. bxa5 {[%emt 0:00:48] An uneventful encounter.   Weighted Error Value: White=0.08 (flawless) /Black=0.07 (flawless)} 1/2-1/2

[Event "AI Cup Div-2 2023"]
[Site "Online"]
[Date "2023.09.27"]
[Round "53.1"]
[White "Keymer, Vincent"]
[Black "Caruana, Fabiano"]
[Result "0-1"]
[ECO "E06"]
[WhiteElo "2717"]
[BlackElo "2786"]
[Annotator "TA"]
[PlyCount "54"]
[EventDate "2023.09.18"]
[EventType "k.o."]
[EventCountry "NET"]
[SourceTitle "playchess.com"]
[Source "ChessBase"]
[SourceQuality "1"]
[TimeControl "900+3"]

{[%evp 13,54,0,25,16,20,4,5,5,8,25,38,39,25,18,3,5,0,0,90,97,104,90,83,89,96,47,38,10,4,0,0,0,0,-847,-889,-870,-911,-912,-902,-904,-842,-895,-864]} 1. Nf3 {[%emt 0:00:09]} d5 {[%emt 0:00:06]} 2. g3 {[%emt 0:00:02]} Nf6 {[%emt 0:00:04]} 3. Bg2 {[%emt 0:00:01]} e6 {[%emt 0:00:01]} 4. d4 {[%emt 0:00:12]} Be7 {[%emt 0:00:07]} 5. c4 {[%emt 0:00:01]} O-O {[%emt 0:00:03]} 6. Nc3 {[%emt 0:00:02]} dxc4 {[%emt 0:00:06]} 7. Ne5 {[%emt 0:00:01]} Nc6 {[%emt 0:00:01]} 8. Bxc6 {[%emt 0:00:07] E06: Closed Catalan: Early deviations.} ({Much worse is} 8. Nxc4 Qxd4 9. Qb3 Qc5 $15) 8... bxc6 {[%emt 0:00:01]} 9. Nxc6 {[%emt 0:00:01] A dynamic duo of knights.} Qe8 {[%emt 0:00:01]} 10. Nxe7+ {[%emt 0:00:03] The position is equal.} Qxe7 {[%emt 0:00:00]} 11. Qa4 {[%emt 0:00:09][%cal Oc1g5]} Nd5 {[%emt 0:00:02]} 12. O-O {[%emt 0:01:42]} a5 {[%emt 0:00:03] [#]} 13. Bd2 $146 {[%emt 0:00:22]} ({Predecessor:} 13. Re1 Qb4 14. a3 Qb6 15. Qxc4 Ba6 16. Nxd5 exd5 17. Qc3 Rfe8 18. Bf4 c6 19. Rac1 {0-1 Abdusattorov,N (2716)-Caruana,F (2786) Speed Chess Chess.com INT blitz 2023 (1)}) 13... Rd8 {[%emt 0:00:13]} 14. Rfe1 {[%emt 0:02:04]} Nb4 {[%emt 0:03:33]} 15. a3 {[%emt 0:00:12][%cal Ba2a3,Ba3b4][%mdl 32]} Rxd4 {[%emt 0:00:47] [#]} (15... Bd7 $11 16. Qd1 Nc6) 16. Bg5 $1 $16 {[%emt 0:01:30][%mdl 64] Deflection, Back Rank} f6 {[%emt 0:00:38]} 17. Bxf6 {[%emt 0:01:13]} gxf6 {[%emt 0:00:22]} 18. axb4 {[%emt 0:00:01]} Bd7 {[%emt 0:00:50][%cal Bc8d7,Bd7g4,Bg4f3][%mdl 32] [#]} 19. Qa3 {[%emt 0:01:41]} (19. b5 $1 $16) 19... a4 $1 $14 {[%emt 0:00:11]} 20. Rad1 {[%emt 0:00:22]} e5 {[%emt 0:00:57]} 21. Nd5 {[%emt 0:01:21]} Qd6 {[%emt 0:00:03]} 22. Qf3 {[%emt 0:00:22]} Rf8 {[%emt 0:00:05]} 23. e3 $2 {[%emt 0:01:00][%mdl 8192]} (23. Nc3 $11) 23... Bg4 $19 {[%emt 0:00:57][%mdl 64] Skewer. Black is clearly winning.} 24. Nxf6+ {[%emt 0:01:19]} Rxf6 {[%emt 0:00:17][%mdl 64] Pin} 25. Qa8+ {[%emt 0:00:01]} Rf8 {[%emt 0:00:06][%cal Od4d1]} 26. Rxd4 {[%emt 0:00:01]} exd4 {[%emt 0:01:19]} 27. Qe4 {[%emt 0:00:02]} Bf3 {[%emt 0:00:02] Weighted Error Value: White=0.39/Black=0.12 (very precise)} (27... Qxb4 $2 28. Qxg4+ Kf7 29. Rc1 $18) 0-1

[Event "AI Cup Div-2 2023"]
[Site "Online"]
[Date "2023.09.27"]
[Round "53.2"]
[White "Caruana, Fabiano"]
[Black "Keymer, Vincent"]
[Result "1-0"]
[ECO "B11"]
[WhiteElo "2786"]
[BlackElo "2717"]
[Annotator "TA"]
[PlyCount "71"]
[EventDate "2023.09.18"]
[EventType "k.o."]
[EventCountry "NET"]
[SourceTitle "playchess.com"]
[Source "ChessBase"]
[SourceQuality "1"]
[TimeControl "900+3"]

{[%evp 11,71,11,7,8,8,0,0,0,0,0,27,44,48,35,77,37,42,36,47,0,0,0,31,0,0,0,0,0,0,0,62,49,98,110,180,152,314,305,366,324,916,915,909,811,980,983,983,975,952,902,945,900,29978,29979,29981,415,3120,2027,29982,29983,29983,29984]} 1. e4 {[%emt 0:00:03]} c6 {[%emt 0:00:11]} 2. Nc3 {[%emt 0:00:44]} d5 {[%emt 0:00:01]} 3. Nf3 {[%emt 0:00:01]} Bg4 {[%emt 0:00:02]} 4. h3 {[%emt 0:00:01]} Bxf3 {[%emt 0:00:05]} 5. Qxf3 {[%emt 0:00:01]} e6 {[%emt 0:00:07]} 6. d4 {[%emt 0:00:38]} Nf6 {[%emt 0:00:02]} 7. a3 {[%emt 0:02:48] B11: Caro-Kann: Two Knights Variation.} Qb6 {[%emt 0:04:45]} 8. Bd3 {[%emt 0:01:54]} Qxd4 {[%emt 0:00:29]} 9. Be3 {[%emt 0:00:03] The position is equal.} Qe5 {[%emt 0:01:37] Hoping for ...d4.} 10. Bf4 {[%emt 0:00:03] [#]} Qh5 $146 {[%emt 0:00:50]} ({Predecessor:} 10... Qd4 11. O-O-O Bxa3 12. Be2 Bxb2+ 13. Kxb2 Qb4+ 14. Ka1 dxe4 {1-0 Valmana Canto,J (2387)-Bentel,R (2126) Lorca op 10th 2021 (3)}) 11. g4 {[%emt 0:00:03]} dxe4 {[%emt 0:00:06]} 12. Nxe4 {[%emt 0:00:11]} Qd5 {[%emt 0:00:09]} 13. Nxf6+ {[%emt 0:01:26]} gxf6 {[%emt 0:00:03]} 14. Be4 {[%emt 0:00:00]} Qc4 {[%emt 0:00:44]} 15. Bd3 {[%emt 0:00:31]} (15. O-O-O $14) 15... Qd5 $1 $11 {[%emt 0:00:56]} 16. Be4 $36 {[%emt 0:00:03][%mdl 2048] White has the initiative.} Qb5 {[%emt 0:00:01]} 17. Bd3 {[%emt 0:02:31][%mdl 1024] White has compensation. This pair of bishops is nice.} (17. a4 $5 {[%cal Ra4b5]} Qc4 18. O-O-O $14) 17... Qa5+ {[%emt 0:01:02]} 18. Bd2 {[%emt 0:00:58]} Qe5+ {[%emt 0:00:01]} 19. Be4 {[%emt 0:00:02] Bc3 is the strong threat.} Nd7 {[%emt 0:00:01] aiming for ...Nc5.} 20. Bc3 {[%emt 0:00:01]} Qg5 {[%emt 0:00:27]} ({Black should try} 20... Qb5 $11) 21. h4 $14 {[%emt 0:00:04]} Qc5 {[%emt 0:00:13]} (21... Qb5 $1 $14) 22. O-O-O $16 {[%emt 0:00:17][%cal Od1d7] Threatens to win with Rxd7! White is more active.} ({Much worse is} 22. Bxf6 $6 Nxf6 23. Qxf6 Rg8 $11) 22... Be7 {[%emt 0:00:59] [#]} (22... Bg7 $16) 23. g5 $1 $18 {[%emt 0:00:43][%cal Od1d7,Bg4g5,Bg5f6][%mdl 32] Black must now prevent Rxd7!} Qc4 $2 {[%emt 0:00:57] A mistake that costs the game.} (23... Qb5 $16 {keeps fighting.}) 24. gxf6 {[%emt 0:00:24]} Bc5 {[%emt 0:00:22]} 25. Kb1 {[%emt 0:00:04][%cal Oe4c6] And now Bxc6! would win.} O-O-O $2 {[%emt 0:00:02] [#]} (25... Qb5 26. Qh5 Rf8) 26. Bxc6 $1 {[%emt 0:00:11][%mdl 512]} Qa6 {[%emt 0:00:49]} 27. Bxd7+ {[%emt 0:00:17]} Rxd7 {[%emt 0:00:02]} 28. Rxd7 {[%emt 0:00:01]} Kxd7 {[%emt 0:00:00]} 29. Rd1+ {[%emt 0:00:08]} Kc8 {[%emt 0:00:01]} 30. Qh5 {[%emt 0:00:16][%csl LRc5,LRf7]} Qc6 {[%emt 0:00:25]} 31. Qxf7 {[%emt 0:00:07]} Bxa3 {[%emt 0:00:03]} 32. bxa3 {[%emt 0:00:10]} Qxc3 {[%emt 0:00:02]} 33. Qd7+ {[%emt 0:00:02]} (33. Qg7 $142 Rd8 34. Rxd8+ Kxd8 35. Qe7+ Kc8 36. f7 Qe1+ 37. Ka2 Qxf2 38. f8=Q+ Qxf8 39. Qxf8+ Kd7 40. Qf7+ Kc6 41. Qxh7) 33... Kb8 {[%emt 0:00:01]} 34. f7 {[%emt 0:00:30] Qd6+ would kill now.} Qc8 {[%emt 0:00:17]} 35. Qxc8+ {[%emt 0:00:11]} Kxc8 {[%emt 0:00:06] [#]} 36. Rg1 $1 {[%emt 0:00:01] Weighted Error Value: White=0.31/Black=0.75} 1-0

[Event "AI Cup Div-2 2023"]
[Site "Online"]
[Date "2023.09.27"]
[Round "53.2"]
[White "Kuzubov, Yuriy"]
[Black "Dominguez Perez, Leinier"]
[Result "1/2-1/2"]
[ECO "D50"]
[WhiteElo "2625"]
[BlackElo "2745"]
[Annotator "TA"]
[PlyCount "47"]
[EventDate "2023.09.18"]
[EventType "k.o."]
[EventCountry "NET"]
[SourceTitle "playchess.com"]
[Source "ChessBase"]
[SourceQuality "1"]
[TimeControl "900+3"]

{[%evp 14,47,21,12,19,7,8,1,8,4,21,4,22,0,0,0,0,0,0,0,0,-2,0,0,0,0,0,0,0,0,0,0,0,0,5,0]} 1. d4 {[%emt 0:00:09]} Nf6 {[%emt 0:00:05]} 2. Nf3 {[%emt 0:00:02]} d5 {[%emt 0:00:01]} 3. c4 {[%emt 0:00:01]} e6 {[%emt 0:00:02]} 4. Nc3 {[%emt 0:00:10]} c5 {[%emt 0:00:07]} 5. cxd5 {[%emt 0:00:04]} cxd4 {[%emt 0:00:02]} 6. Qxd4 {[%emt 0:00:03]} exd5 {[%emt 0:00:02]} 7. Bg5 {[%emt 0:00:36]} Be7 {[%emt 0:00:02]} 8. e3 {[%emt 0:00:00] The position is equal.} O-O {[%emt 0:00:18] D50: Queen's Gambit Declined: Dutch-Peruvian Gambit.} 9. Bb5 {[%emt 0:00:02]} a6 {[%emt 0:00:30]} 10. Ba4 {[%emt 0:00:05]} Nc6 {[%emt 0:00:09]} 11. Qd3 {[%emt 0:00:33]} Bg4 {[%emt 0:03:03]} 12. Bxc6 {[%emt 0:02:44]} bxc6 {[%emt 0:00:04]} 13. Ne5 {[%emt 0:00:10][%cal Og5f6] [#] Prevents Nd7. Black must now prevent Bxf6!} (13. Nd4 $5 {[%cal Rd4c6]}) 13... Qc8 {[%emt 0:00:00]} 14. Bxf6 {[%emt 0:02:04]} Bxf6 {[%emt 0:00:04]} 15. Nxg4 {[%emt 0:00:01]} Qxg4 {[%emt 0:00:01]} 16. O-O {[%emt 0:00:03] [#]} Qb4 $146 {[%emt 0:01:17] Prevents b3.} ({Predecessor:} 16... Rfd8 17. Rac1 d4 18. Qc4 Rd6 19. Ne2 h5 20. Nxd4 Bxd4 21. exd4 Rg6 22. g3 h4 {1-0 Ngo,B (2296)-Almeida Saenz,A (2259) Charlotte CCCSA Spring IM-B 2022 (5)}) 17. Rab1 {[%emt 0:01:30][%cal Ba1b1,Bb1b2,Bb2b4][%mdl 32]} Bxc3 {[%emt 0:01:25]} 18. bxc3 {[%emt 0:00:04]} Qa4 {[%emt 0:00:34]} 19. Qd2 {[%emt 0:00:06]} Rfb8 {[%emt 0:00:46]} 20. g3 {[%emt 0:00:10]} Rb5 {[%emt 0:00:48]} 21. Rb2 {[%emt 0:00:14]} Rab8 {[%emt 0:00:06]} 22. Rfb1 {[%emt 0:00:02]} g6 {[%emt 0:01:20]} 23. Rb4 {[%emt 0:00:33]} Qa5 {[%emt 0:00:24]} 24. Kg2 {[%emt 0:00:33] An uneventful encounter.   Weighted Error Value: White=0.02 (flawless) /Black=0.01 (flawless)} 1/2-1/2